[Event "Meltwater Champions Chess Tour 2022: Chessable Masters | Prelims"]
[White "Praggnanandhaa, R"]
[Black "Harikrishna, Pentala"]
[WhiteFideId "25059530"]
[BlackFideId "5007003"]
[WhiteElo "1927"]
[BlackElo "2624"]
[Result "1/2-1/2"]
[Round "06"]
[TimeControl "900+10"]
[Date "2022.05.20"]
[WhiteClock "0:02:36"]
[BlackClock "0:06:34"]

1. e4 {[%clk 0:15:20]}  e5 {[%clk 0:15:20]} 2. Nf3 {[%clk 0:15:28]}  Nc6 {[%clk 0:15:28]} 3. Bb5 {[%clk 0:15:37]}  a6 {[%clk 0:15:37]} 4. Ba4 {[%clk 0:15:46]}  Nf6 {[%clk 0:15:46]} 5. d3 {[%clk 0:15:56]}  d6 {[%clk 0:15:55]} 6. c4 {[%clk 0:15:59]}  Bg4 {[%clk 0:16:03]} 7. h3 {[%clk 0:16:05]}  Bxf3 {[%clk 0:16:12]} 8. Qxf3 {[%clk 0:16:09]}  Be7 {[%clk 0:16:21]} 9. Nc3 {[%clk 0:15:51]}  O-O {[%clk 0:16:27]} 10. Be3 {[%clk 0:15:59]}  Nd4 {[%clk 0:16:25]} 11. Bxd4 {[%clk 0:13:06]}  exd4 {[%clk 0:16:33]} 12. Ne2 {[%clk 0:13:16]}  c6 {[%clk 0:16:41]} 13. O-O {[%clk 0:13:20]}  b5 {[%clk 0:16:15]} 14. Bb3 {[%clk 0:13:08]}  Qb6 {[%clk 0:16:23]} 15. cxb5 {[%clk 0:08:37]}  axb5 {[%clk 0:16:28]} 16. Ng3 {[%clk 0:08:12]}  g6 {[%clk 0:16:16]} 17. Qe2 {[%clk 0:08:16]}  Nd7 {[%clk 0:14:33]} 18. f4 {[%clk 0:08:23]}  Nc5 {[%clk 0:14:35]} 19. Bc2 {[%clk 0:08:18]}  Rae8 {[%clk 0:12:17]} 20. Qg4 {[%clk 0:06:37]}  Nxe4 {[%clk 0:11:47]} 21. dxe4 {[%clk 0:05:12]}  d3+ {[%clk 0:11:45]} 22. Kh2 {[%clk 0:05:21]}  dxc2 {[%clk 0:11:52]} 23. Rac1 {[%clk 0:05:30]}  Qc5 {[%clk 0:10:59]} 24. Qe2 {[%clk 0:05:19]}  Qc4 {[%clk 0:08:31]} 25. Rxc2 {[%clk 0:03:43]}  Qxe2 {[%clk 0:08:38]} 26. Nxe2 {[%clk 0:03:50]}  Bf6 {[%clk 0:08:33]} 27. Rxc6 {[%clk 0:03:56]}  Rxe4 {[%clk 0:07:47]} 28. Nc3 {[%clk 0:03:36]}  Rc4 {[%clk 0:06:03]} 29. Rxd6 {[%clk 0:02:23]}  Bxc3 {[%clk 0:06:11]} 30. bxc3 {[%clk 0:02:32]}  Rxc3 {[%clk 0:06:20]} 31. Rf2 {[%clk 0:02:35]}  Ra3 {[%clk 0:06:19]} 32. f5 {[%clk 0:02:28]}  gxf5 {[%clk 0:05:25]} 33. Rxf5 {[%clk 0:01:26]}  Rxa2 {[%clk 0:05:24]} 34. Rxb5 {[%clk 0:01:34]}  Kh8 {[%clk 0:05:30]} 35. Rg5 {[%clk 0:01:36]}  Rg8 {[%clk 0:05:37]} 36. Rxg8+ {[%clk 0:01:43]}  Kxg8 {[%clk 0:05:47]} 37. Rd3 {[%clk 0:01:49]}  Kg7 {[%clk 0:05:52]} 38. Rg3+ {[%clk 0:01:58]}  Kf6 {[%clk 0:05:57]} 39. Rf3+ {[%clk 0:02:08]}  Kg6 {[%clk 0:06:06]} 40. Rg3+ {[%clk 0:02:17]}  Kf6 {[%clk 0:06:15]} 41. Rf3+ {[%clk 0:02:27]}  Kg6 {[%clk 0:06:25]} 42. Rg3+ {[%clk 0:02:36]}  Kf6 {[%clk 0:06:34]} 1/2-1/2


[Site "http://www.chessbomb.com"]

[Event "Meltwater Champions Chess Tour 2022: Chessable Masters | Prelims"]
[White "Harikrishna, Pentala"]
[Black "Carlsen, Magnus"]
[WhiteFideId "5007003"]
[BlackFideId "1503014"]
[WhiteElo "2624"]
[BlackElo "2847"]
[Result "1/2-1/2"]
[Round "07"]
[TimeControl "900+10"]
[Date "2022.05.20"]
[WhiteClock "0:01:16"]
[BlackClock "0:01:41"]

1. e4 {[%clk 0:15:20]}  c6 {[%clk 0:15:20]} 2. Nf3 {[%clk 0:15:27]}  d5 {[%clk 0:15:28]} 3. d3 {[%clk 0:15:36]}  g6 {[%clk 0:15:00]} 4. e5 {[%clk 0:15:38]}  c5 {[%clk 0:15:00]} 5. d4 {[%clk 0:14:35]}  Nc6 {[%clk 0:13:58]} 6. dxc5 {[%clk 0:14:28]}  Bg4 {[%clk 0:13:30]} 7. Nbd2 {[%clk 0:13:40]}  e6 {[%clk 0:11:07]} 8. h3 {[%clk 0:12:21]}  Bxf3 {[%clk 0:11:14]} 9. Nxf3 {[%clk 0:12:29]}  Bxc5 {[%clk 0:11:23]} 10. Bd3 {[%clk 0:12:24]}  Qc7 {[%clk 0:11:31]} 11. Qe2 {[%clk 0:12:15]}  Nd4 {[%clk 0:11:35]} 12. Nxd4 {[%clk 0:11:29]}  Bxd4 {[%clk 0:11:45]} 13. f4 {[%clk 0:09:03]}  Ne7 {[%clk 0:11:39]} 14. Bb5+ {[%clk 0:06:01]}  Kf8 {[%clk 0:11:44]} 15. c3 {[%clk 0:04:03]}  Bxc3+ {[%clk 0:11:02]} 16. bxc3 {[%clk 0:04:11]}  Qxc3+ {[%clk 0:11:11]} 17. Qd2 {[%clk 0:04:19]}  Qxa1 {[%clk 0:11:15]} 18. O-O {[%clk 0:04:27]}  Rc8 {[%clk 0:10:32]} 19. f5 {[%clk 0:03:35]}  Rxc1 {[%clk 0:08:32]} 20. Rxc1 {[%clk 0:03:40]}  Qxe5 {[%clk 0:08:38]} 21. fxe6 {[%clk 0:03:43]}  Qxe6 {[%clk 0:06:20]} 22. Qd4 {[%clk 0:02:43]}  Rg8 {[%clk 0:06:18]} 23. Qxa7 {[%clk 0:01:51]}  Kg7 {[%clk 0:06:25]} 24. Rc7 {[%clk 0:00:51]}  Nf5 {[%clk 0:03:23]} 25. Qxb7 {[%clk 0:00:42]}  Qe3+ {[%clk 0:02:31]} 26. Kh1 {[%clk 0:00:50]}  Ng3+ {[%clk 0:01:51]} 27. Kh2 {[%clk 0:00:59]}  Qf4 {[%clk 0:02:01]} 28. Kg1 {[%clk 0:00:45]}  h5 {[%clk 0:01:12]} 29. Re7 {[%clk 0:00:34]}  h4 {[%clk 0:00:19]} 30. Qc7 {[%clk 0:00:36]}  Qxc7 {[%clk 0:00:12]} 31. Rxc7 {[%clk 0:00:44]}  Kf6 {[%clk 0:00:21]} 32. a4 {[%clk 0:00:45]}  Ne4 {[%clk 0:00:30]} 33. Bc6 {[%clk 0:00:23]}  Rb8 {[%clk 0:00:36]} 34. Rxf7+ {[%clk 0:00:16]}  Kxf7 {[%clk 0:00:42]} 35. Bxd5+ {[%clk 0:00:25]}  Kf6 {[%clk 0:00:51]} 36. Bxe4 {[%clk 0:00:35]}  Rb3 {[%clk 0:00:56]} 37. Kh2 {[%clk 0:00:39]}  Ra3 {[%clk 0:01:05]} 38. Bc6 {[%clk 0:00:48]}  Ke5 {[%clk 0:01:15]} 39. Be8 {[%clk 0:00:55]}  g5 {[%clk 0:01:24]} 40. Bc6 {[%clk 0:01:04]}  Kd4 {[%clk 0:01:34]} 41. Kg1 {[%clk 0:01:08]}  Ke3 {[%clk 0:01:43]} 42. Kh2 {[%clk 0:01:13]}  Kf2 {[%clk 0:01:52]} 43. Bd5 {[%clk 0:00:58]}  Rxa4 {[%clk 0:02:01]} 44. Bc6 {[%clk 0:01:07]}  Rd4 {[%clk 0:01:41]} 45. Bb7 {[%clk 0:01:16]} 1/2-1/2


[Site "http://www.chessbomb.com"]

[Event "Meltwater Champions Chess Tour 2022: Chessable Masters | Prelims"]
[White "Jones, Gawain C B"]
[Black "Praggnanandhaa, R"]
[WhiteFideId "409561"]
[BlackFideId "25059530"]
[WhiteElo "2630"]
[BlackElo "1927"]
[Result "0-1"]
[Round "07"]
[TimeControl "900+10"]
[Date "2022.05.20"]
[WhiteClock "0:02:20"]
[BlackClock "0:02:40"]

1. e4 {[%clk 0:15:20]}  c5 {[%clk 0:15:20]} 2. Be2 {[%clk 0:15:28]}  Nc6 {[%clk 0:15:08]} 3. d3 {[%clk 0:15:36]}  g6 {[%clk 0:15:04]} 4. f4 {[%clk 0:15:44]}  Bg7 {[%clk 0:15:13]} 5. Nf3 {[%clk 0:15:53]}  Nf6 {[%clk 0:14:56]} 6. O-O {[%clk 0:16:00]}  O-O {[%clk 0:15:03]} 7. Qe1 {[%clk 0:15:40]}  d5 {[%clk 0:14:41]} 8. Nc3 {[%clk 0:15:43]}  b6 {[%clk 0:13:11]} 9. Bd2 {[%clk 0:15:30]}  dxe4 {[%clk 0:10:49]} 10. dxe4 {[%clk 0:15:36]}  Nd4 {[%clk 0:10:58]} 11. Bd3 {[%clk 0:12:47]}  c4 {[%clk 0:10:10]} 12. Bxc4 {[%clk 0:11:27]}  Nxc2 {[%clk 0:10:13]} 13. Qh4 {[%clk 0:11:35]}  Nxa1 {[%clk 0:10:09]} 14. f5 {[%clk 0:11:20]}  Nc2 {[%clk 0:06:44]} 15. fxg6 {[%clk 0:09:40]}  hxg6 {[%clk 0:06:25]} 16. e5 {[%clk 0:09:48]}  Bb7 {[%clk 0:05:04]} 17. exf6 {[%clk 0:05:39]}  exf6 {[%clk 0:04:55]} 18. Ne4 {[%clk 0:05:27]}  Nd4 {[%clk 0:03:28]} 19. Nfg5 {[%clk 0:03:18]}  fxg5 {[%clk 0:03:35]} 20. Nxg5 {[%clk 0:02:58]}  Nf3+ {[%clk 0:03:33]} 21. Rxf3 {[%clk 0:02:17]}  Qd4+ {[%clk 0:03:29]} 22. Qxd4 {[%clk 0:02:24]}  Bxd4+ {[%clk 0:03:37]} 23. Be3 {[%clk 0:02:34]}  Bxf3 {[%clk 0:03:19]} 24. Bxd4 {[%clk 0:02:43]}  Bb7 {[%clk 0:02:24]} 25. Bf6 {[%clk 0:02:51]}  Rac8 {[%clk 0:02:28]} 26. Bb3 {[%clk 0:02:59]}  Rc1+ {[%clk 0:02:12]} 27. Kf2 {[%clk 0:03:08]}  Rc5 {[%clk 0:02:21]} 28. g4 {[%clk 0:02:47]}  Bd5 {[%clk 0:02:23]} 29. Bd1 {[%clk 0:02:43]}  Rc6 {[%clk 0:02:26]} 30. Bd4 {[%clk 0:02:36]}  f6 {[%clk 0:02:33]} 31. Nh3 {[%clk 0:02:20]}  g5 {[%clk 0:02:40]} 0-1


[Site "http://www.chessbomb.com"]

[Event "Meltwater Champions Chess Tour 2022: Chessable Masters | Prelims"]
[White "Anton Guijarro, David"]
[Black "Grandelius, Nils"]
[WhiteFideId "2285525"]
[BlackFideId "1710400"]
[WhiteElo "2633"]
[BlackElo "2652"]
[Result "1/2-1/2"]
[Round "07"]
[TimeControl "900+10"]
[Date "2022.05.20"]
[WhiteClock "0:01:10"]
[BlackClock "0:01:31"]

1. e4 {[%clk 0:15:20]}  c5 {[%clk 0:15:20]} 2. Nf3 {[%clk 0:15:27]}  d6 {[%clk 0:15:28]} 3. c3 {[%clk 0:15:34]}  Nf6 {[%clk 0:15:33]} 4. Be2 {[%clk 0:15:42]}  g6 {[%clk 0:15:24]} 5. O-O {[%clk 0:15:48]}  Bg7 {[%clk 0:15:33]} 6. Bb5+ {[%clk 0:15:55]}  Nc6 {[%clk 0:15:13]} 7. d4 {[%clk 0:15:59]}  O-O {[%clk 0:15:20]} 8. d5 {[%clk 0:16:05]}  Na5 {[%clk 0:15:18]} 9. Re1 {[%clk 0:15:55]}  a6 {[%clk 0:15:05]} 10. Bf1 {[%clk 0:15:44]}  b5 {[%clk 0:15:06]} 11. Bf4 {[%clk 0:14:50]}  Re8 {[%clk 0:14:40]} 12. h3 {[%clk 0:12:40]}  h6 {[%clk 0:13:24]} 13. Bh2 {[%clk 0:10:47]}  Qb6 {[%clk 0:12:30]} 14. Nbd2 {[%clk 0:09:34]}  e6 {[%clk 0:12:07]} 15. b4 {[%clk 0:08:55]}  Nb7 {[%clk 0:12:14]} 16. dxe6 {[%clk 0:08:12]}  Bxe6 {[%clk 0:11:43]} 17. a4 {[%clk 0:07:35]}  Nd7 {[%clk 0:10:48]} 18. axb5 {[%clk 0:06:10]}  axb5 {[%clk 0:10:23]} 19. Rxa8 {[%clk 0:06:20]}  Rxa8 {[%clk 0:10:31]} 20. e5 {[%clk 0:06:17]}  cxb4 {[%clk 0:04:51]} 21. cxb4 {[%clk 0:06:20]}  dxe5 {[%clk 0:04:30]} 22. Nxe5 {[%clk 0:06:03]}  Nxe5 {[%clk 0:04:34]} 23. Bxe5 {[%clk 0:06:11]}  Bxe5 {[%clk 0:04:03]} 24. Rxe5 {[%clk 0:06:21]}  Nd6 {[%clk 0:03:36]} 25. Qf3 {[%clk 0:03:15]}  Ra2 {[%clk 0:03:08]} 26. Rxe6 {[%clk 0:02:52]}  Rxd2 {[%clk 0:01:17]} 27. Re7 {[%clk 0:00:48]}  Qd4 {[%clk 0:01:04]} 28. Rd7 {[%clk 0:00:47]}  Kg7 {[%clk 0:00:47]} 29. Bxb5 {[%clk 0:00:21]}  Qxb4 {[%clk 0:00:39]} 30. Bf1 {[%clk 0:00:25]}  Qd4 {[%clk 0:00:43]} 31. g3 {[%clk 0:00:28]}  Qf6 {[%clk 0:00:37]} 32. Bg2 {[%clk 0:00:24]}  Qxf3 {[%clk 0:00:36]} 33. Bxf3 {[%clk 0:00:33]}  Ne4 {[%clk 0:00:45]} 34. Rxd2 {[%clk 0:00:40]}  Nxd2 {[%clk 0:00:55]} 35. Be2 {[%clk 0:00:46]}  Ne4 {[%clk 0:01:03]} 36. Bf3 {[%clk 0:00:52]}  Nd2 {[%clk 0:01:12]} 37. Be2 {[%clk 0:01:01]}  Ne4 {[%clk 0:01:22]} 38. Bf3 {[%clk 0:01:10]}  Nd2 {[%clk 0:01:31]} 1/2-1/2


[Site "http://www.chessbomb.com"]

[Event "Meltwater Champions Chess Tour 2022: Chessable Masters | Prelims"]
[White "Ding, Liren"]
[Black "Tari, Aryan"]
[WhiteFideId "8603677"]
[BlackFideId "1510045"]
[WhiteElo "2836"]
[BlackElo "2531"]
[Result "1/2-1/2"]
[Round "07"]
[TimeControl "900+10"]
[Date "2022.05.20"]
[WhiteClock "0:01:02"]
[BlackClock "0:01:05"]

1. c4 {[%clk 0:15:20]}  e5 {[%clk 0:15:20]} 2. Nc3 {[%clk 0:15:24]}  Nf6 {[%clk 0:15:28]} 3. Nf3 {[%clk 0:15:33]}  e4 {[%clk 0:14:24]} 4. Ng5 {[%clk 0:15:39]}  c6 {[%clk 0:14:34]} 5. Ngxe4 {[%clk 0:11:59]}  Nxe4 {[%clk 0:14:41]} 6. Nxe4 {[%clk 0:12:09]}  d5 {[%clk 0:14:50]} 7. cxd5 {[%clk 0:12:19]}  cxd5 {[%clk 0:15:00]} 8. Ng3 {[%clk 0:12:28]}  h5 {[%clk 0:15:10]} 9. e3 {[%clk 0:11:54]}  h4 {[%clk 0:15:16]} 10. Ne2 {[%clk 0:10:32]}  Nc6 {[%clk 0:14:24]} 11. d4 {[%clk 0:10:00]}  Bf5 {[%clk 0:11:15]} 12. Bd2 {[%clk 0:09:43]}  h3 {[%clk 0:10:01]} 13. Qb3 {[%clk 0:09:12]}  Qd7 {[%clk 0:09:35]} 14. Nf4 {[%clk 0:08:39]}  Bd6 {[%clk 0:08:23]} 15. Nxh3 {[%clk 0:08:40]}  O-O {[%clk 0:07:54]} 16. Bd3 {[%clk 0:08:31]}  Bxh3 {[%clk 0:06:54]} 17. gxh3 {[%clk 0:08:39]}  Rac8 {[%clk 0:06:52]} 18. Qxd5 {[%clk 0:05:58]}  Nb4 {[%clk 0:06:33]} 19. Bf5 {[%clk 0:06:06]}  Qe7 {[%clk 0:03:53]} 20. Bxb4 {[%clk 0:04:42]}  Bxb4+ {[%clk 0:04:03]} 21. Kf1 {[%clk 0:04:43]}  Rcd8 {[%clk 0:03:47]} 22. Qf3 {[%clk 0:04:37]}  Rd6 {[%clk 0:03:40]} 23. Rg1 {[%clk 0:04:40]}  Rh6 {[%clk 0:03:16]} 24. Rg4 {[%clk 0:04:28]}  Kh8 {[%clk 0:03:23]} 25. Rc1 {[%clk 0:04:20]}  Bd6 {[%clk 0:03:22]} 26. Kg1 {[%clk 0:03:43]}  g6 {[%clk 0:01:38]} 27. Bd3 {[%clk 0:03:51]}  Qe6 {[%clk 0:01:45]} 28. Re4 {[%clk 0:03:45]}  Qf5 {[%clk 0:01:15]} 29. Qg2 {[%clk 0:01:41]}  Qxh3 {[%clk 0:01:08]} 30. Qxh3 {[%clk 0:01:47]}  Rxh3 {[%clk 0:01:18]} 31. f4 {[%clk 0:01:31]}  Kg7 {[%clk 0:00:58]} 32. Bf1 {[%clk 0:01:30]}  Rhh8 {[%clk 0:00:38]} 33. d5 {[%clk 0:01:30]}  g5 {[%clk 0:00:44]} 34. Kg2 {[%clk 0:00:54]}  gxf4 {[%clk 0:00:53]} 35. exf4 {[%clk 0:01:03]}  Kf6 {[%clk 0:01:01]} 36. h3 {[%clk 0:01:09]}  Rfg8+ {[%clk 0:01:03]} 37. Kf3 {[%clk 0:01:18]}  Rg1 {[%clk 0:01:11]} 38. f5 {[%clk 0:00:54]}  Rxh3+ {[%clk 0:01:06]} 39. Bxh3 {[%clk 0:01:03]}  Rxc1 {[%clk 0:01:16]} 40. Re2 {[%clk 0:01:05]}  Rc4 {[%clk 0:01:05]} 41. b3 {[%clk 0:01:02]} 1/2-1/2


[Site "http://www.chessbomb.com"]

[Event "Meltwater Champions Chess Tour 2022: Chessable Masters | Prelims"]
[White "Hansen, Eric"]
[Black "Giri, Anish"]
[WhiteFideId "2606771"]
[BlackFideId "24116068"]
[WhiteElo "2579"]
[BlackElo "2730"]
[Result "0-1"]
[Round "07"]
[TimeControl "900+10"]
[Date "2022.05.20"]
[WhiteClock "0:00:19"]
[BlackClock "0:02:22"]

1. e4 {[%clk 0:15:20]}  c5 {[%clk 0:15:20]} 2. Nf3 {[%clk 0:15:28]}  d6 {[%clk 0:15:29]} 3. c3 {[%clk 0:15:27]}  Nf6 {[%clk 0:15:36]} 4. Be2 {[%clk 0:15:38]}  g6 {[%clk 0:15:45]} 5. O-O {[%clk 0:15:46]}  Bg7 {[%clk 0:15:54]} 6. Bb5+ {[%clk 0:15:55]}  Nc6 {[%clk 0:16:03]} 7. d4 {[%clk 0:16:03]}  O-O {[%clk 0:16:12]} 8. d5 {[%clk 0:16:00]}  a6 {[%clk 0:16:21]} 9. Be2 {[%clk 0:15:54]}  Nb8 {[%clk 0:14:17]} 10. Nbd2 {[%clk 0:15:40]}  e6 {[%clk 0:14:20]} 11. c4 {[%clk 0:15:10]}  exd5 {[%clk 0:14:13]} 12. cxd5 {[%clk 0:15:17]}  Re8 {[%clk 0:14:18]} 13. Bd3 {[%clk 0:15:25]}  Bg4 {[%clk 0:13:46]} 14. a4 {[%clk 0:14:02]}  Nbd7 {[%clk 0:13:42]} 15. Re1 {[%clk 0:12:54]}  Ne5 {[%clk 0:13:46]} 16. Bf1 {[%clk 0:12:51]}  Nxf3+ {[%clk 0:11:43]} 17. gxf3 {[%clk 0:12:57]}  Bh5 {[%clk 0:11:25]} 18. Qb3 {[%clk 0:11:51]}  Nd7 {[%clk 0:10:50]} 19. f4 {[%clk 0:11:25]}  Bd4 {[%clk 0:08:59]} 20. Nf3 {[%clk 0:10:46]}  Bxf3 {[%clk 0:06:25]} 21. Qxf3 {[%clk 0:10:54]}  Qh4 {[%clk 0:06:20]} 22. Be3 {[%clk 0:09:12]}  Nf6 {[%clk 0:04:13]} 23. Bxd4 {[%clk 0:09:11]}  cxd4 {[%clk 0:04:23]} 24. Rad1 {[%clk 0:03:36]}  Nxe4 {[%clk 0:04:21]} 25. Rxd4 {[%clk 0:03:22]}  Nc5 {[%clk 0:03:53]} 26. Rxe8+ {[%clk 0:01:38]}  Rxe8 {[%clk 0:04:03]} 27. a5 {[%clk 0:01:47]}  Qf6 {[%clk 0:03:26]} 28. Rb4 {[%clk 0:01:46]}  Re1 {[%clk 0:03:23]} 29. Kg2 {[%clk 0:01:41]}  Qf5 {[%clk 0:02:45]} 30. h3 {[%clk 0:00:18]}  Qb1 {[%clk 0:02:29]} 31. Be2 {[%clk 0:00:26]}  Qc2 {[%clk 0:02:35]} 32. Bf1 {[%clk 0:00:33]}  Qc1 {[%clk 0:02:17]} 33. Be2 {[%clk 0:00:19]}  Qd2 {[%clk 0:02:22]} 0-1


[Site "http://www.chessbomb.com"]

[Event "Meltwater Champions Chess Tour 2022: Chessable Masters | Prelims"]
[White "Mamedyarov, Shakhriyar"]
[Black "Wei, Yi"]
[WhiteFideId "13401319"]
[BlackFideId "8603405"]
[WhiteElo "2699"]
[BlackElo "2752"]
[Result "1/2-1/2"]
[Round "07"]
[TimeControl "900+10"]
[Date "2022.05.20"]
[WhiteClock "0:04:46"]
[BlackClock "0:01:03"]

1. d4 {[%clk 0:15:20]}  Nf6 {[%clk 0:15:20]} 2. c4 {[%clk 0:15:28]}  e6 {[%clk 0:15:28]} 3. g4 {[%clk 0:15:34]}  Bb4+ {[%clk 0:15:05]} 4. Bd2 {[%clk 0:15:41]}  Qe7 {[%clk 0:13:45]} 5. e3 {[%clk 0:15:37]}  d5 {[%clk 0:11:48]} 6. Nc3 {[%clk 0:14:56]}  O-O {[%clk 0:11:02]} 7. g5 {[%clk 0:11:35]}  Bxc3 {[%clk 0:11:03]} 8. Bxc3 {[%clk 0:11:44]}  Ne4 {[%clk 0:11:08]} 9. h4 {[%clk 0:11:54]}  c5 {[%clk 0:10:20]} 10. Nf3 {[%clk 0:12:00]}  Nc6 {[%clk 0:10:00]} 11. Qc2 {[%clk 0:11:41]}  cxd4 {[%clk 0:09:24]} 12. exd4 {[%clk 0:11:42]}  e5 {[%clk 0:08:38]} 13. dxe5 {[%clk 0:10:37]}  Bg4 {[%clk 0:08:01]} 14. Be2 {[%clk 0:10:36]}  Nxc3 {[%clk 0:07:42]} 15. Qxc3 {[%clk 0:10:45]}  d4 {[%clk 0:07:16]} 16. Qa3 {[%clk 0:10:53]}  Qxa3 {[%clk 0:05:59]} 17. bxa3 {[%clk 0:11:02]}  d3 {[%clk 0:02:16]} 18. Bd1 {[%clk 0:11:08]}  Rac8 {[%clk 0:02:24]} 19. Kd2 {[%clk 0:08:40]}  Na5 {[%clk 0:02:25]} 20. Kxd3 {[%clk 0:07:48]}  Nxc4 {[%clk 0:02:13]} 21. Ke4 {[%clk 0:07:40]}  Rfe8 {[%clk 0:00:34]} 22. Kf4 {[%clk 0:06:56]}  Bxf3 {[%clk 0:00:32]} 23. Bxf3 {[%clk 0:07:06]}  Nxe5 {[%clk 0:00:37]} 24. Bxb7 {[%clk 0:07:15]}  Rc3 {[%clk 0:00:35]} 25. f3 {[%clk 0:06:32]}  Rxa3 {[%clk 0:00:39]} 26. Kg3 {[%clk 0:06:37]}  Nd3 {[%clk 0:00:28]} 27. Rhb1 {[%clk 0:05:24]}  Nc5 {[%clk 0:00:22]} 28. Bc6 {[%clk 0:04:05]}  Rc8 {[%clk 0:00:29]} 29. Rb5 {[%clk 0:04:08]}  Rc3 {[%clk 0:00:20]} 30. Bd5 {[%clk 0:04:03]}  Rd3 {[%clk 0:00:15]} 31. Bc6 {[%clk 0:03:36]}  Rd6 {[%clk 0:00:21]} 32. Bb7 {[%clk 0:03:08]}  Nxb7 {[%clk 0:00:30]} 33. Rxb7 {[%clk 0:03:18]}  Ra6 {[%clk 0:00:11]} 34. Rc1 {[%clk 0:03:16]}  Rf8 {[%clk 0:00:20]} 35. Rc2 {[%clk 0:03:15]}  h6 {[%clk 0:00:29]} 36. Kg4 {[%clk 0:02:55]}  hxg5 {[%clk 0:00:36]} 37. hxg5 {[%clk 0:03:05]}  Kh7 {[%clk 0:00:31]} 38. f4 {[%clk 0:03:11]}  Ra4 {[%clk 0:00:26]} 39. Rbc7 {[%clk 0:02:43]}  Kg6 {[%clk 0:00:23]} 40. R7c4 {[%clk 0:02:46]}  f5+ {[%clk 0:00:22]} 41. Kf3 {[%clk 0:02:45]}  Ra3+ {[%clk 0:00:25]} 42. R4c3 {[%clk 0:02:54]}  Rxc3+ {[%clk 0:00:13]} 43. Rxc3 {[%clk 0:03:04]}  Rd8 {[%clk 0:00:16]} 44. Rc6+ {[%clk 0:03:08]}  Kh5 {[%clk 0:00:24]} 45. Rc7 {[%clk 0:03:15]}  Rd3+ {[%clk 0:00:30]} 46. Ke2 {[%clk 0:03:23]}  Ra3 {[%clk 0:00:37]} 47. Rxg7 {[%clk 0:03:32]}  Kg4 {[%clk 0:00:44]} 48. g6 {[%clk 0:03:41]}  Rxa2+ {[%clk 0:00:30]} 49. Ke3 {[%clk 0:03:21]}  Ra3+ {[%clk 0:00:39]} 50. Kf2 {[%clk 0:03:29]}  Ra2+ {[%clk 0:00:44]} 51. Ke3 {[%clk 0:03:38]}  Ra3+ {[%clk 0:00:53]} 52. Kf2 {[%clk 0:03:47]}  Kxf4 {[%clk 0:00:30]} 53. Rf7 {[%clk 0:03:56]}  Rf3+ {[%clk 0:00:12]} 54. Ke2 {[%clk 0:04:02]}  Rg3 {[%clk 0:00:13]} 55. g7 {[%clk 0:04:04]}  a5 {[%clk 0:00:17]} 56. Kf2 {[%clk 0:04:11]}  Rf3+ {[%clk 0:00:18]} 57. Kg2 {[%clk 0:04:15]}  Rg3+ {[%clk 0:00:26]} 58. Kf2 {[%clk 0:04:25]}  Rg6 {[%clk 0:00:32]} 59. Re7 {[%clk 0:04:16]}  Kg5 {[%clk 0:00:26]} 60. Ra7 {[%clk 0:04:21]}  Kh6 {[%clk 0:00:35]} 61. Rxa5 {[%clk 0:04:28]}  Kxg7 {[%clk 0:00:44]} 62. Rxf5 {[%clk 0:04:37]}  Rf6 {[%clk 0:00:53]} 63. Rxf6 {[%clk 0:04:46]}  Kxf6 {[%clk 0:01:03]} 1/2-1/2


[Site "http://www.chessbomb.com"]

[Event "Meltwater Champions Chess Tour 2022: Chessable Masters | Prelims"]
[White "Van Foreest, Jorden"]
[Black "Vidit, Santosh Gujrathi"]
[WhiteFideId "1039784"]
[BlackFideId "5029465"]
[WhiteElo "2645"]
[BlackElo "2617"]
[Result "1-0"]
[Round "07"]
[TimeControl "900+10"]
[Date "2022.05.20"]
[WhiteClock "0:04:41"]
[BlackClock "0:00:16"]

1. d4 {[%clk 0:15:20]}  Nf6 {[%clk 0:15:20]} 2. c4 {[%clk 0:15:25]}  e6 {[%clk 0:15:28]} 3. Nf3 {[%clk 0:15:32]}  d5 {[%clk 0:15:30]} 4. Nc3 {[%clk 0:15:39]}  Bb4 {[%clk 0:15:26]} 5. Qa4+ {[%clk 0:15:44]}  Nc6 {[%clk 0:15:35]} 6. a3 {[%clk 0:15:53]}  Bxc3+ {[%clk 0:15:39]} 7. bxc3 {[%clk 0:16:02]}  Ne4 {[%clk 0:15:45]} 8. e3 {[%clk 0:15:58]}  Nxc3 {[%clk 0:14:39]} 9. Qc2 {[%clk 0:16:05]}  Ne4 {[%clk 0:14:48]} 10. Bd3 {[%clk 0:16:13]}  O-O {[%clk 0:14:14]} 11. O-O {[%clk 0:16:12]}  Bd7 {[%clk 0:12:55]} 12. Bxe4 {[%clk 0:15:18]}  dxe4 {[%clk 0:13:04]} 13. Qxe4 {[%clk 0:15:28]}  Na5 {[%clk 0:13:03]} 14. Qc2 {[%clk 0:15:27]}  c5 {[%clk 0:12:53]} 15. dxc5 {[%clk 0:15:07]}  Qc7 {[%clk 0:12:38]} 16. Bd2 {[%clk 0:14:07]}  h6 {[%clk 0:11:27]} 17. Rfd1 {[%clk 0:13:40]}  Rfd8 {[%clk 0:11:07]} 18. Bb4 {[%clk 0:12:41]}  b6 {[%clk 0:09:54]} 19. Bxa5 {[%clk 0:10:58]}  bxa5 {[%clk 0:10:01]} 20. Rd4 {[%clk 0:11:04]}  Be8 {[%clk 0:08:53]} 21. Rad1 {[%clk 0:10:59]}  Rdc8 {[%clk 0:08:53]} 22. Qc3 {[%clk 0:11:06]}  Qxc5 {[%clk 0:08:02]} 23. Rg4 {[%clk 0:11:14]}  g6 {[%clk 0:08:00]} 24. h4 {[%clk 0:10:58]}  Rd8 {[%clk 0:06:13]} 25. Rgd4 {[%clk 0:10:45]}  Rxd4 {[%clk 0:06:03]} 26. exd4 {[%clk 0:10:26]}  Qf5 {[%clk 0:06:12]} 27. d5 {[%clk 0:09:26]}  exd5 {[%clk 0:06:20]} 28. cxd5 {[%clk 0:09:37]}  a4 {[%clk 0:05:51]} 29. d6 {[%clk 0:09:01]}  Bd7 {[%clk 0:05:41]} 30. Ne5 {[%clk 0:07:42]}  Rc8 {[%clk 0:04:31]} 31. Qd4 {[%clk 0:07:40]}  Re8 {[%clk 0:04:38]} 32. Nxd7 {[%clk 0:07:05]}  Qxd7 {[%clk 0:04:47]} 33. h5 {[%clk 0:07:15]}  gxh5 {[%clk 0:03:45]} 34. Rd3 {[%clk 0:06:11]}  Re6 {[%clk 0:03:35]} 35. Rg3+ {[%clk 0:05:32]}  Rg6 {[%clk 0:03:44]} 36. Qf6 {[%clk 0:04:41]}  Rxg3 {[%clk 0:02:20]} 37. fxg3 {[%clk 0:04:51]}  Qc8 {[%clk 0:01:36]} 38. Kh2 {[%clk 0:04:29]}  h4 {[%clk 0:01:34]} 39. gxh4 {[%clk 0:04:34]}  Qc1 {[%clk 0:00:51]} 40. Qd4 {[%clk 0:04:32]}  a5 {[%clk 0:00:13]} 41. d7 {[%clk 0:04:28]}  Qc7+ {[%clk 0:00:21]} 42. Kh3 {[%clk 0:04:38]}  Qd8 {[%clk 0:00:28]} 43. Kg4 {[%clk 0:04:38]}  Kh7 {[%clk 0:00:12]} 44. Kf5 {[%clk 0:04:33]}  Kg8 {[%clk 0:00:17]} 45. g4 {[%clk 0:04:10]}  Kh7 {[%clk 0:00:21]} 46. g5 {[%clk 0:04:07]}  hxg5 {[%clk 0:00:20]} 47. hxg5 {[%clk 0:04:16]}  Kg8 {[%clk 0:00:16]} 48. g6 {[%clk 0:04:25]}  f6 {[%clk 0:00:14]} 49. Qd5+ {[%clk 0:04:32]}  Kh8 {[%clk 0:00:16]} 50. Qh1+ {[%clk 0:04:41]} 1-0


[Site "http://www.chessbomb.com"]